[Event "Hungary Olimpic Hopes 2022"]
[Site "Tapolca"]
[Date "2022.06.23"]
[Round "1.1"]
[White "Kolimar, Kristof Pal"]
[Black "Panda, Barnabas"]
[Result "1-0"]
[ECO "A14"]
[WhiteElo "2203"]
[BlackElo "1777"]
[Annotator "TA"]
[PlyCount "55"]
[EventDate "2022.06.23"]
[EventType "swiss"]
[EventCountry "HUN"]
[SourceTitle "playchess.com"]
[Source "ChessBase"]
[SourceQuality "1"]
[TimeControl "5400+30"]

{[%evp 18,55,17,0,83,83,83,82,87,78,118,103,113,105,125,74,85,0,55,0,19,0,0,0,86,75,99,104,93,106,111,77,75,82,104,102,93,85,799,774]} 1. Nf3 {[%emt 0:00:07]} Nf6 {[%emt 0:00:17]} 2. c4 {[%emt 0:00:09]} e6 3. g3 {[%emt 0:00:09]} d5 {[%emt 0:00:39]} 4. Bg2 {[%emt 0:00:06]} Be7 {[%emt 0:00:44]} 5. O-O {[%emt 0:00:09]} O-O {[%emt 0:00:10]} 6. d4 {[%emt 0:00:04]} dxc4 {[%emt 0:00:42]} 7. Qc2 {[%emt 0:00:10]} a6 {[%emt 0:00:28]} 8. a4 {[%emt 0:00:07]} Bd7 {[%emt 0:01:31]} 9. Rd1 {[%emt 0:00:28]} Bc6 {[%emt 0:02:20]} 10. Nc3 {[%mdl 1024] White has compensation. 10.Bg5 gains popularity.} a5 {[#] E05: Open Catalan: 5 Nf3 Be7.} (10... Bxf3 $11 11. Bxf3 Nc6) 11. e4 $1 $16 {[%emt 0:10:07]} Na6 {[%emt 0:19:58]} 12. Ne5 Nb4 {[%emt 0:26:16] White is better.} 13. Qe2 {[%emt 0:14:58] [#]} Qc8 $146 {[%emt 0:06:41]} ({Predecessor:} 13... Nd3 14. Nxd3 cxd3 15. Rxd3 Bb4 16. Bg5 h6 17. Bxf6 Qxf6 18. e5 Qe7 19. Bxc6 bxc6 {½-½ (44) Li,C (2730)-Vajda,L (2597) Novi Sad 2016}) 14. Be3 {[%emt 0:17:19]} Rd8 {[%emt 0:05:21]} 15. Nxc4 {[%emt 0:17:14]} ({But not} 15. Qxc4 Nc2 $14) 15... b6 {[%emt 0:15:08]} 16. Ne5 {[%emt 0:10:07]} (16. Rac1 $142) 16... Bb7 {[%emt 0:01:37]} 17. f4 {[%emt 0:03:43]} (17. Rac1 $16) 17... c5 {[%emt 0:01:55]} (17... Ba6 $11 18. Qf3 Bf8) 18. Qf2 {[%emt 0:03:56]} (18. dxc5 $14 Rxd1+ 19. Rxd1 Bxc5 20. Bxc5 Qxc5+ 21. Qf2) 18... cxd4 {[%emt 0:02:53]} 19. Rxd4 {[%emt 0:00:26]} Rxd4 {[%emt 0:00:55]} 20. Bxd4 {[%emt 0:00:01]} Bc5 {[%emt 0:00:21]} (20... Nc6 $11 21. Nxc6 (21. Bxb6 Nxe5 22. fxe5 Ng4 $17) 21... Bxc6) 21. Bxc5 {[%emt 0:04:11]} Qxc5 {[%emt 0:02:40]} 22. Qxc5 {[%emt 0:00:08]} bxc5 {[%emt 0:00:04]} 23. Rd1 {[%emt 0:00:11]} Kf8 {[%emt 0:03:34]} 24. g4 {[%emt 0:01:54] White is more active.} Nc6 {[%emt 0:05:35] ...Nxe5 is the strong threat.} 25. Nd7+ {[%emt 0:01:31]} Nxd7 {[%emt 0:00:01]} 26. Rxd7 {[%emt 0:00:01]} Rb8 {[%emt 0:00:01]} 27. e5 {[%emt 0:00:22]} Ke8 $2 {[%emt 0:00:55][%mdl 8192] [#]} (27... Ba8 $16) 28. Rxb7 $1 {[%emt 0:00:02][%mdl 512] Weighted Error Value: White=0.14 (very precise) /Black=0.33} 1-0

[Event "Hungary Olimpic Hopes 2022"]
[Site "Tapolca"]
[Date "2022.06.23"]
[Round "1.2"]
[White "Kramar, David"]
[Black "Bodrogi, Bendeguz"]
[Result "0-1"]
[ECO "B30"]
[WhiteElo "1671"]
[BlackElo "2198"]
[Annotator "TA"]
[PlyCount "63"]
[EventDate "2022.06.23"]
[EventType "swiss"]
[EventCountry "HUN"]
[SourceTitle "playchess.com"]
[Source "ChessBase"]
[SourceQuality "1"]
[TimeControl "5400+30"]

{[%evp 9,63,0,0,0,0,0,0,-40,-20,-28,-10,-22,51,49,56,54,62,37,59,43,26,44,35,36,64,40,72,100,126,127,116,118,246,230,265,140,123,0,0,0,0,0,0,0,0,-29982,-29983,-29995,-454,-438,-364,-573,-389,-388,-377,-354]} 1. e4 {[%emt 0:00:07][%cal Be2e4,Be4e5][%mdl 32]} c5 {[%emt 0:00:12]} 2. Nf3 {[%emt 0:00:09]} Nc6 {[%emt 0:00:05]} 3. Bb5 {[%emt 0:00:11]} Nf6 {[%emt 0:00:29]} 4. e5 {[%emt 0:00:13]} Nd5 {[%emt 0:00:55]} 5. Bxc6 {[%emt 0:00:11]} dxc6 {[%emt 0:00:27]} 6. O-O {[%emt 0:00:15] B30: Sicilian: 2...Nc6 3 Bb5, lines without ...g6.} Bg4 {[%emt 0:12:24]} 7. h3 Bh5 8. d3 {[%emt 0:10:16] The position is equal.} (8. e6 $5) 8... e6 {[%emt 0:00:51] [#]} 9. Nbd2 $146 {[%emt 0:05:55]} ({Predecessor:} 9. Nc3 Be7 10. Ne4 h6 11. a3 Qc7 12. Re1 Bxf3 13. gxf3 Qxe5 14. Nxc5 Qf5 15. Ne4 Qxh3 {0-1 (29) Kostrikina,A (2161)-Girya,O (2446) Sochi 2016}) 9... Be7 {[%emt 0:20:21]} 10. Re1 {[%emt 0:12:28]} g5 {[%emt 0:00:52]} ({Black should try} 10... Qc7 $11) 11. Ne4 $14 {[%emt 0:03:44]} h6 {[%emt 0:04:12]} 12. a3 Qc7 13. c4 {[%emt 0:23:22]} Nf4 {[%emt 0:01:44]} 14. Bxf4 {[%emt 0:02:07]} (14. b4 $5) 14... gxf4 {[%emt 0:00:23]} 15. b4 {[%emt 0:10:14]} b6 16. Rb1 {[%emt 0:04:01]} Rg8 {[%emt 0:18:55]} 17. Qe2 cxb4 {[%emt 0:19:25]} 18. axb4 {[%emt 0:00:39]} Rd8 {[#]} (18... Bxf3 $2 19. Qxf3 O-O-O 20. c5 $18 (20. Qxf4 f5 $16)) 19. c5 $1 {Hoping for Nd6+.} Rd4 {[%emt 0:03:34]} (19... Bxf3 $2 20. Qxf3 Qxe5 21. Nd6+ Bxd6 22. Rxe5 Bxe5 23. Qxc6+ Ke7 24. Re1 $18 (24. cxb6 axb6 25. Qxb6 Rxd3 $18)) 20. Nd6+ {[%emt 0:09:33]} Bxd6 (20... Kf8 $16) 21. exd6 $18 {[%emt 0:04:51]} Qd8 {[%emt 0:01:42]} 22. Rec1 {[%emt 0:05:55]} (22. Ra1 $18 Kf8 23. Rxa7 Rxb4 24. cxb6 Qxd6 25. Qe5 Qxe5 26. Nxe5) 22... Qf6 $16 {[%emt 0:04:48]} 23. Qe5 {[%emt 0:01:16]} (23. Kh1 $16) 23... Rxg2+ $1 $11 24. Kf1 {[%emt 0:00:08]} Qxe5 {[%emt 0:01:27] The board is on fire.} 25. Nxe5 Rg5 $40 {[%emt 0:03:18][%mdl 128] Black is up to no good.} 26. Nxc6 {[%emt 0:06:56]} Rxd3 27. Nb8 $2 {[%emt 0:00:48][%mdl 8192] [#]} (27. h4 $11 Rg7 28. Nxa7) 27... Rxh3 {[%emt 0:01:26][%cal Rh3h1]} 28. Ke1 Rh1+ (28... Re5+ $142 29. Kf1 Be2+ 30. Ke1 Bb5+ 31. Kd1 Rd3+ 32. Kc2 Re2#) 29. Kd2 $19 {[%emt 0:00:35]} Rd5+ {[%emt 0:03:30]} 30. Kc3 {[%emt 0:00:36]} (30. Kc2 {was forced.} Rxc1+ 31. Rxc1 bxc5 32. d7+ Kd8 33. Rg1) 30... Rxc1+ {[%emt 0:00:06]} 31. Rxc1 {[%emt 0:00:06]} bxc5 32. d7+ {[%emt 0:00:55] Weighted Error Value: White=0.50/Black=0.52} 0-1

[Event "Hungary Olimpic Hopes 2022"]
[Site "Tapolca"]
[Date "2022.06.23"]
[Round "1.3"]
[White "Giang, Tran Nam"]
[Black "Megyeri, Martin"]
[Result "1/2-1/2"]
[ECO "B33"]
[WhiteElo "2124"]
[BlackElo "1624"]
[Annotator "NA RC"]
[PlyCount "92"]
[EventDate "2022.06.23"]
[EventType "swiss"]
[EventCountry "HUN"]
[SourceTitle "playchess.com"]
[Source "ChessBase"]
[SourceQuality "1"]
[TimeControl "5400+30"]

1. e4 {[%emt 0:00:00]} c5 {[%emt 0:00:08]} 2. Nf3 e6 {[%emt 0:00:11]} 3. d4 {[%emt 0:00:19]} cxd4 {[%emt 0:00:05]} 4. Nxd4 {[%emt 0:00:04]} Nf6 {[%emt 0:00:12]} 5. Nc3 {[%emt 0:00:11]} Nc6 6. Ndb5 d6 {[%emt 0:00:37]} 7. Bf4 {[%emt 0:01:48]} e5 {[%emt 0:00:06]} 8. Bg5 {[%emt 0:00:04]} a6 {[%emt 0:00:25]} 9. Na3 b5 {[%emt 0:00:59]} 10. Nd5 {[%emt 0:00:31]} Be7 {[%emt 0:00:27]} 11. Bxf6 {[%emt 0:00:07]} Bxf6 {[%emt 0:00:06]} 12. c4 {[%emt 0:00:00]} b4 {[%emt 0:03:18]} 13. Nc2 {[%emt 0:00:54]} O-O {[%emt 0:06:49]} 14. g3 {[%emt 0:01:28]} Bg5 {[%emt 0:09:12] 14...g6 is the recent fashion.} 15. Bg2 {[%emt 0:04:36]} Be6 {[%emt 0:17:46]} 16. O-O {[%emt 0:06:27] [#]} Be7 $146 {[%emt 0:02:19]} ({Predecessor:} 16... a5 17. Qd3 Bxd5 18. cxd5 Nb8 19. a3 Na6 20. axb4 Nxb4 21. Nxb4 axb4 22. Qc4 b3 23. Qxb3 {½-½ (22) Muzychuk,A (2564)-Gelfand,B (2703) Jerusalem 2018}) 17. Nxe7+ {[%emt 0:02:09]} Qxe7 {[%emt 0:05:25]} 18. b3 {[%emt 0:05:10]} a5 {[%emt 0:06:59]} 19. Qd3 {[%emt 0:02:29]} Rfd8 {[%emt 0:06:21]} 20. f4 {[%emt 0:00:33]} Qa7+ {[%emt 0:05:34]} 21. Kh1 {[%emt 0:04:25]} f6 {[%emt 0:03:06]} 22. f5 {[%emt 0:09:51]} Bf7 {[%emt 0:06:47]} 23. g4 {[%emt 0:02:30]} h6 {[%emt 0:04:26]} 24. h4 {[%emt 0:08:50]} Qe7 {[%emt 0:07:08]} ({Black should try} 24... a4 $11) 25. Qg3 {[%emt 0:04:33]} (25. Rf2 $14) 25... Kf8 {[%emt 0:05:33]} 26. Rf2 {[%emt 0:04:34]} Ke8 {[%emt 0:01:49]} 27. Bh3 {[%emt 0:03:36]} Kd7 {[%emt 0:00:37]} 28. Rd1 {[%emt 0:02:44]} Kc7 {[%emt 0:03:27]} 29. Rfd2 {[%emt 0:02:01]} Rab8 {[%emt 0:01:06]} 30. Qe3 {[%emt 0:01:17]} Ra8 {[%emt 0:02:07]} 31. Bf1 {[%emt 0:02:27]} Be8 {[%emt 0:01:18]} 32. a3 {[%emt 0:00:48]} bxa3 {[%emt 0:00:32]} 33. Nxa3 {[%emt 0:01:18]} Nd4 34. Nc2 {[%emt 0:00:15]} Nxc2 {[%emt 0:00:54]} 35. Rxc2 {[%emt 0:01:48]} Bc6 {[%emt 0:01:06]} 36. Rdc1 {[%emt 0:01:31]} Rdc8 {[%emt 0:00:18]} 37. Bg2 {[%emt 0:03:11]} Kd8 {[%emt 0:00:44]} 38. Rd2 {[%emt 0:00:27]} Ke8 39. Rcd1 {[%emt 0:00:17]} Rd8 {[%emt 0:00:50]} 40. Qb6 {[%emt 0:00:47]} Rac8 {[%emt 0:00:55]} 41. c5 {[%emt 0:02:34]} Qc7 {[%emt 0:00:05]} 42. Qxc7 {[%emt 0:01:33]} Rxc7 43. cxd6 {[%emt 0:01:45]} Rb7 {[%emt 0:00:55]} 44. Rc1 {[%emt 0:02:05]} Kd7 {[%emt 0:00:39]} 45. Rc3 $11 {[%emt 0:01:22]} Rc8 {[%emt 0:00:32]} 46. Kg1 Rb4 1/2-1/2

[Event "Hungary Olimpic Hopes 2022"]
[Site "Tapolca"]
[Date "2022.06.23"]
[Round "1.4"]
[White "Puskas, Mihaly"]
[Black "Matyassy, Lazar"]
[Result "1/2-1/2"]
[ECO "D80"]
[WhiteElo "1692"]
[BlackElo "2161"]
[Annotator "TA"]
[PlyCount "74"]
[EventDate "2022.06.23"]
[EventType "swiss"]
[EventCountry "HUN"]
[SourceTitle "playchess.com"]
[Source "ChessBase"]
[SourceQuality "1"]
[TimeControl "5400+30"]

{[%evp 9,74,0,0,0,0,0,-6,-29,-11,-10,-9,-9,-9,-10,15,0,0,0,0,-4,0,-15,-16,-17,-15,-26,-8,-34,-5,-4,-3,-18,-22,-32,-31,-37,-34,-40,-22,-44,0,0,0,0,0,0,0,0,7,0,0,0,0,0,8,0,0,0,0,0,8,8,16,16,16,16,29]} 1. d4 {[%emt 0:00:03]} Nf6 {[%emt 0:00:08]} 2. c4 {[%emt 0:00:06]} g6 {[%emt 0:00:05]} 3. Nc3 {[%emt 0:00:04]} d5 {[%emt 0:00:05]} 4. h4 {[%emt 0:00:11]} c5 {[%emt 0:00:27]} 5. cxd5 {[%emt 0:01:09]} Nxd5 {[%emt 0:00:33]} 6. e4 {[%emt 0:01:45] D80: Grünfeld: Unusual White 4th moves and 4 Bg5.} Nxc3 {[%emt 0:00:06]} 7. bxc3 {[%emt 0:00:09]} Bg7 {[%emt 0:00:13][%cal Rc5d4] [#]} 8. Bb5+ $146 {[%emt 0:01:07]} ({Predecessor:} 8. Nf3 cxd4 9. cxd4 Nc6 10. Be3 Bg4 11. d5 Ne5 12. Bb5+ Kf8 13. Rc1 Bxf3 14. gxf3 Qa5+ 15. Qd2 Nxf3+ {0-1 (15) Ozates,T (2217)-Doshi,M (2396) Chess.com INT 2022}) 8... Bd7 {[%emt 0:01:29]} (8... Nc6 {keeps more tension.} 9. d5 Qa5 10. Rb1 a6) 9. Bxd7+ {[%emt 0:05:53]} Qxd7 {[%emt 0:00:09]} 10. Be3 {[%emt 0:00:42]} Nc6 {[%emt 0:00:46][%cal Rc5d4]} 11. Ne2 {[%emt 0:00:47]} Rc8 {[%emt 0:09:27]} 12. h5 {[%emt 0:03:48]} Qg4 {[%emt 0:20:31]} 13. Ng3 {[%emt 0:07:17]} Qxd1+ {[%emt 0:00:22]} 14. Rxd1 {[%emt 0:00:09]} O-O {[%emt 0:00:23][%cal Bh8f8,Bf8d8,Bd8d5,Bd5a5,Ba5a3][%mdl 32]} 15. hxg6 {[%emt 0:11:38]} hxg6 {[%emt 0:00:16]} 16. O-O {[%emt 0:10:29]} Rfd8 {[%emt 0:03:21][%cal Rc5d4]} 17. e5 {[%emt 0:04:30]} Rd5 {[%emt 0:08:14]} 18. f4 {[%emt 0:06:20]} cxd4 {[%emt 0:01:53]} 19. cxd4 {[%emt 0:00:10]} Rcd8 {[%emt 0:00:29][%cal Rc6d4]} 20. Ne2 {[%emt 0:01:05]} Ra5 {[%emt 0:02:10]} 21. Rd2 {[%emt 0:01:10]} Nb4 {[%emt 0:01:45]} 22. Rb2 {[%emt 0:06:30]} Nd5 {[%emt 0:07:04]} ({Resist} 22... Rxa2 23. Rxa2 Nxa2 24. Rb1 $14) 23. Bd2 {[%emt 0:00:32]} Ra3 {[%emt 0:01:05]} 24. Rc1 {[%emt 0:04:31]} b6 {[%emt 0:03:02]} 25. Nc3 {[%emt 0:03:47] The position is equal.} Nxc3 {[%emt 0:01:26]} 26. Rxc3 {[%emt 0:00:11]} Rxc3 {[%emt 0:01:42]} 27. Bxc3 $11 {[%emt 0:00:07][%mdl 4096] Endgame KRB-KRB} e6 {[%emt 0:00:16]} 28. Kf2 {[%emt 0:05:30]} Bf8 {[%emt 0:03:11]} 29. Rb3 {[%emt 0:01:38]} Rc8 {[%emt 0:04:25]} 30. Ke3 {[%emt 0:05:51]} Rc4 {[%emt 0:03:34]} 31. Ke4 b5 {[%emt 0:04:38]} 32. a3 {[%emt 0:09:28]} a6 {[%emt 0:09:29]} 33. Bb4 {[%emt 0:00:58]} Bxb4 {[%emt 0:02:11]} 34. Rxb4 {[%emt 0:02:44]} Rc6 {[%emt 0:06:00]} 35. a4 {[%emt 0:01:08]} bxa4 {[%emt 0:00:13]} 36. Rxa4 {[%emt 0:00:08]} Rb6 {[%emt 0:00:13]} 37. g4 {[%emt 0:01:15]} Kf8 {[%emt 0:02:21] Weighted Error Value: White=0.06 (flawless) /Black=0.06 (flawless)} 1/2-1/2

[Event "Hungary Olimpic Hopes 2022"]
[Site "Tapolca"]
[Date "2022.06.23"]
[Round "1.5"]
[White "Balazs, Sztella Anna"]
[Black "Karacsonyi, Luca"]
[Result "0-1"]
[ECO "B44"]
[WhiteElo "1572"]
[BlackElo "1834"]
[Annotator "NA RC"]
[PlyCount "88"]
[EventDate "2022.06.23"]
[EventType "swiss"]
[EventCountry "HUN"]
[SourceTitle "playchess.com"]
[Source "ChessBase"]
[SourceQuality "1"]
[TimeControl "5400+30"]

1. e4 {[%emt 0:00:03]} c5 {[%emt 0:00:30]} 2. Nf3 {[%emt 0:00:04]} Nc6 {[%emt 0:00:07]} 3. d4 {[%emt 0:00:06]} cxd4 {[%emt 0:00:05]} 4. Nxd4 {[%emt 0:00:04]} e6 {[%emt 0:00:11]} 5. Be3 Nf6 {[%emt 0:01:04]} 6. Nc3 {[%emt 0:00:18]} a6 {[%emt 0:00:21]} 7. Bd3 {[%emt 0:00:31]} Qc7 {[%emt 0:01:14]} 8. O-O {[%emt 0:00:20]} Be7 {[%emt 0:02:32]} 9. Be2 {[%emt 0:03:24]} O-O {[%emt 0:03:04]} 10. f4 {[%emt 0:02:14]} d6 {[%emt 0:02:35]} 11. f5 {[%emt 0:01:48]} (11. a4 $11 {deserves consideration.}) 11... Nxd4 {[%emt 0:09:39]} 12. Qxd4 {[%emt 0:01:12]} Bd7 {[%emt 0:12:47]} 13. Qb6 {[%emt 0:04:50]} Qxb6 {[%emt 0:07:13]} 14. Bxb6 {[%emt 0:00:08]} Bc6 {[%emt 0:02:55]} 15. Bc4 (15. fxe6 $14 fxe6 16. Bc4) 15... exf5 {[%emt 0:06:43]} 16. exf5 {[%emt 0:15:28]} Nd7 {[%emt 0:03:57]} 17. Be3 {[%emt 0:02:15]} Bf6 {[%emt 0:04:28]} 18. Bd2 Bd4+ {[%emt 0:04:24]} 19. Kh1 {[%emt 0:07:57]} b5 {[%emt 0:02:00]} 20. Bb3 {[%emt 0:03:18]} Nc5 {[%emt 0:05:20]} 21. a3 {[%emt 0:06:40]} Nxb3 {[%emt 0:02:36]} 22. cxb3 {[%emt 0:00:08]} Rfe8 {[%emt 0:02:25]} 23. Rae1 {[%emt 0:01:29]} Rad8 24. b4 {[%emt 0:03:16]} Kf8 {[%emt 0:10:20]} 25. Bf4 {[%emt 0:01:44]} Be5 {[%emt 0:03:20]} (25... d5 $17 26. h3 Bf6) 26. Bxe5 {[%emt 0:01:29]} dxe5 $15 {[%emt 0:01:01]} 27. f6 {[%emt 0:01:42] [#]} (27. Kg1 $15) 27... Rd2 $1 {[%emt 0:02:13]} 28. fxg7+ {[%emt 0:03:11]} Kxg7 {[%emt 0:00:17]} 29. Ne4 {[%emt 0:01:05]} Bxe4 {[%emt 0:01:11]} 30. Rxe4 {[%emt 0:00:06]} f5 {[%emt 0:00:18]} 31. Ree1 {[%emt 0:00:28]} Kf6 {[%emt 0:00:39]} 32. g4 {[%emt 0:00:31]} f4 {[%emt 0:01:34]} 33. Rxf4+ {[%emt 0:00:38]} exf4 {[%emt 0:00:06]} 34. Rxe8 {[%emt 0:00:05]} Kg5 {[%emt 0:02:14]} 35. Rg8+ {[%emt 0:03:58]} Kh4 {[%emt 0:01:27]} 36. Rg7 {[%emt 0:00:23]} Rxb2 {[%emt 0:01:08]} 37. Rxh7+ {[%emt 0:00:20]} Kxg4 {[%emt 0:00:11]} 38. Rg7+ {[%emt 0:00:51]} Kf3 {[%emt 0:00:21]} 39. Rg1 {[%emt 0:01:16]} Ke3 {[%emt 0:02:06]} 40. h4 f3 {[%emt 0:00:41]} 41. h5 {[%emt 0:02:58]} f2 {[%emt 0:00:22]} 42. Rf1 {[%emt 0:00:13]} Kf3 {[%emt 0:01:53]} 43. h6 {[%emt 0:02:51]} Re2 {[%emt 0:00:18]} 44. h7 {[%emt 0:00:08]} Re8 {[%emt 0:00:24]} 0-1

[Event "Hungary Olimpic Hopes 2022"]
[Site "Tapolca"]
[Date "2022.06.23"]
[Round "1.6"]
[White "Kovacs, Reka"]
[Black "Toth, Timea"]
[Result "1/2-1/2"]
[ECO "B38"]
[WhiteElo "1685"]
[BlackElo "1964"]
[Annotator "NA RC"]
[PlyCount "88"]
[EventDate "2022.06.23"]
[EventType "swiss"]
[EventCountry "HUN"]
[SourceTitle "playchess.com"]
[Source "ChessBase"]
[SourceQuality "1"]
[TimeControl "5400+30"]

1. e4 {[%emt 0:00:06]} c5 {[%emt 0:00:01]} 2. Nf3 {[%emt 0:00:10]} Nc6 {[%emt 0:00:04]} 3. d4 {[%emt 0:00:23]} cxd4 {[%emt 0:00:04]} 4. Nxd4 {[%emt 0:00:07]} g6 {[%emt 0:00:01]} 5. c4 Bg7 {[%emt 0:00:03]} 6. Be3 {[%emt 0:00:24]} Nf6 {[%emt 0:00:03]} 7. Nc3 {[%emt 0:00:07]} O-O {[%emt 0:00:00]} 8. Be2 {[%emt 0:01:17]} d6 9. O-O {[%emt 0:01:17]} Bd7 {[%emt 0:00:10]} 10. f3 a6 {[%emt 0:10:47]} 11. Qd2 {[%emt 0:01:34]} Nxd4 {[%emt 0:00:09]} 12. Bxd4 {[%emt 0:00:22]} ({Much worse is} 12. Qxd4 {[#]} Ng4 $1 13. Qd3 Nxe3 14. Qxe3 Bc6 $15) 12... Bc6 {[%emt 0:00:04]} (12... Re8 $14 {is more appropriate.}) 13. Rab1 {[%emt 0:03:57]} Nd7 {[%emt 0:28:21]} 14. Be3 {[%emt 0:07:13]} Rb8 {[%emt 0:04:17]} 15. Rfc1 {[%emt 0:17:20]} a5 {[%emt 0:00:00]} 16. Nd5 {[%emt 0:07:11]} e6 {[%emt 0:50:10]} 17. Nc3 {[%emt 0:04:46]} Nc5 {[%emt 0:01:10]} 18. Rd1 {[%emt 0:18:18]} Be5 {[%emt 0:00:30]} 19. Bg5 Qc7 {[%emt 0:01:21]} 20. Bd3 {[%emt 0:04:32]} Bd4+ {[%emt 0:00:42]} 21. Kh1 {[%emt 0:00:48]} e5 22. Ne2 {[%emt 0:03:01]} Ne6 {[%emt 0:00:35]} 23. Bf6 Qb6 {[%emt 0:00:34]} 24. Qh6 {[%emt 0:08:55]} Be3 {[%emt 0:00:36]} 25. Qh4 {[%emt 0:00:55]} h5 26. g4 {[%emt 0:02:00]} Bf2 {[%emt 0:01:31]} 27. Qh3 {[%emt 0:01:52]} h4 {[%emt 0:01:00]} 28. Bxh4 Kg7 29. Bxf2 {[%emt 0:01:53]} Qxf2 {[%emt 0:00:31]} 30. Qg2 {[%emt 0:00:35]} Qe3 {[%emt 0:00:16]} 31. Bc2 {[%emt 0:01:47]} Nf4 {[%emt 0:00:53]} 32. Nxf4 {[%emt 0:00:20]} Qxf4 {[%emt 0:00:13]} 33. Qg3 {[%emt 0:01:45]} Qxg3 {[%emt 0:00:20]} 34. hxg3 {[%emt 0:00:02]} Rh8+ {[%emt 0:00:10]} 35. Kg2 {[%emt 0:00:09]} Rbd8 {[%emt 0:00:16]} 36. Rh1 {[%emt 0:00:18]} a4 {[%emt 0:01:27]} 37. Bd3 {[%emt 0:01:00]} Rb8 {[%emt 0:01:08]} 38. Rxh8 {[%emt 0:00:18]} Rxh8 {[%emt 0:00:39]} 39. Rd1 {[%emt 0:00:37]} Rd8 40. Kf2 {[%emt 0:00:38]} f6 {[%emt 0:00:44]} 41. Be2 {[%emt 0:00:18]} Kf7 42. c5 {[%emt 0:00:18]} Ke7 {[%emt 0:00:28]} 43. cxd6+ $1 {[%emt 0:00:34]} Rxd6 44. Rxd6 {[%emt 0:00:24]} Kxd6 $11 {[%emt 0:00:02]} 1/2-1/2

[Event "Hungary Olimpic Hopes 2022"]
[Site "Tapolca"]
[Date "2022.06.23"]
[Round "1.7"]
[White "Horvath, Greta"]
[Black "Lazsadi, Kerka Lilla"]
[Result "1-0"]
[ECO "C16"]
[WhiteElo "1365"]
[BlackElo "1755"]
[Annotator "NA RC"]
[PlyCount "87"]
[EventDate "2022.06.23"]
[EventType "swiss"]
[EventCountry "HUN"]
[SourceTitle "playchess.com"]
[Source "ChessBase"]
[SourceQuality "1"]
[TimeControl "5400+30"]

1. e4 {[%emt 0:00:11]} e6 {[%emt 0:00:17]} 2. d4 {[%emt 0:00:17]} d5 {[%emt 0:00:24]} 3. Nc3 {[%emt 0:00:07]} Bb4 {[%emt 0:00:14]} 4. e5 {[%emt 0:00:12]} Ne7 {[%emt 0:00:10]} 5. Bd2 {[%emt 0:01:19]} c5 {[%emt 0:00:23]} 6. Nb5 {[%emt 0:01:06]} Bxd2+ {[%emt 0:00:20]} 7. Qxd2 {[%emt 0:00:09]} O-O {[%emt 0:00:08]} 8. Nf3 {[%emt 0:03:40]} cxd4 9. Nbxd4 {[%emt 0:02:17]} Nbc6 {[%emt 0:02:11]} 10. Nxc6 {[%emt 0:01:32]} bxc6 {[%emt 0:01:31]} 11. Bd3 {[%emt 0:01:37]} c5 {[%emt 0:03:05]} 12. b3 {[%emt 0:04:42]} Bb7 {[%emt 0:06:39]} 13. O-O {[%emt 0:06:04]} Qc7 {[%emt 0:03:09]} 14. Qg5 {[%emt 0:03:36]} c4 15. Bxh7+ Kh8 {[%emt 0:11:40]} 16. Qh5 {[%emt 0:07:40]} Ng8 {[%emt 0:00:22]} 17. Bxg8+ {[%emt 0:04:51]} Kxg8 {[%emt 0:00:09]} 18. Ng5 {[%emt 0:00:18]} Rfe8 {[%emt 0:02:39]} 19. Qh7+ {[%emt 0:00:50]} Kf8 {[%emt 0:00:09]} 20. Qh8+ {[%emt 0:00:18]} Ke7 {[%emt 0:00:07]} 21. Qxg7 {[%emt 0:00:29]} Rf8 {[%emt 0:01:17]} 22. Qf6+ {[%emt 0:02:21]} Kd7 {[%emt 0:01:28]} 23. Nh7 c3 {[%emt 0:02:12]} 24. Nxf8+ {[%emt 0:01:18]} Rxf8 {[%emt 0:00:46]} 25. Rad1 {[%emt 0:02:11]} Qc5 26. Rfe1 d4 {[%emt 0:02:49]} 27. Qf4 {[%emt 0:02:34]} Bd5 {[%emt 0:00:36]} 28. Qxd4 {[%emt 0:01:03]} Qc7 {[%emt 0:00:33]} 29. Re3 Rc8 {[%emt 0:04:50]} 30. Rdd3 {[%emt 0:02:59]} Qa5 31. Rxc3 {[%emt 0:01:32]} Qxa2 {[%emt 0:01:33]} 32. Qa4+ {[%emt 0:00:15]} Qxa4 {[%emt 0:00:08]} 33. bxa4 {[%emt 0:00:11]} Rb8 {[%emt 0:00:18]} 34. h3 {[%emt 0:00:31]} Rb4 35. Red3 {[%emt 0:00:39]} Rb1+ {[%emt 0:02:07]} 36. Kh2 {[%emt 0:00:07]} Rf1 {[%emt 0:00:49]} 37. Kg3 {[%emt 0:01:03]} a6 {[%emt 0:00:42]} 38. Rc5 Ke7 39. Rc7+ {[%emt 0:01:00]} Kf8 {[%emt 0:00:32]} 40. Ra7 {[%emt 0:00:36]} Re1 {[%emt 0:01:44]} 41. Re3 {[%emt 0:01:20]} Rc1 {[%emt 0:00:42]} 42. Rc3 {[%emt 0:00:21]} Be4 43. Rxa6 {[%emt 0:00:33]} Kg7 {[%emt 0:02:17]} 44. f3 {[%emt 0:01:15]} 1-0